[Event "DVM U12 2024"]
[Site "Heidelberg"]
[Date "2024.12.28"]
[Round "4"]
[White "Lu, Alexander"]
[Black "Grabowski, Joshua"]
[Result "0-1"]
[ECO "D10"]
[WhiteElo "1571"]
[BlackElo "1745"]
[Annotator "NA RC"]
[PlyCount "156"]
[EventDate "2024.12.23"]
[EventType "team-tourn"]
[EventRounds "7"]
[EventCountry "GER"]
[SourceTitle "playchess.com"]
[Source "ChessBase"]
[SourceQuality "1"]
[TimeControl "40/5400+30:1800+30"]

1. d4 {[%emt 0:00:11]} d5 {[%emt 0:00:10]} 2. c4 {[%emt 0:00:04]} c6 {[%emt 0:00:04]} 3. Nc3 {[%emt 0:00:04]} Nf6 {[%emt 0:00:06]} 4. Bf4 {[%emt 0:00:35]} dxc4 {[%emt 0:00:17]} 5. e3 {[%emt 0:00:43]} b5 {[%emt 0:00:24]} 6. a4 {[%emt 0:01:54]} b4 {[%emt 0:00:51]} 7. Na2 {[%emt 0:00:51]} Ba6 {[%emt 0:00:19]} 8. Nxb4 {[%emt 0:01:01]} Qa5 {[%emt 0:00:12]} 9. Qc2 {[%emt 0:13:19]} Qxb4+ {[%emt 0:00:55]} 10. Qc3 {[%emt 0:00:36]} Nd5 {[%emt 0:01:06]} 11. Qxb4 {[%emt 0:04:04]} Nxb4 {[%emt 0:00:07]} 12. Rc1 {[%emt 0:09:18]} e5 {[%emt 0:08:15]} 13. Bxe5 {[%emt 0:00:00]} Nd3+ {[%emt 0:00:16]} 14. Bxd3 {[%emt 0:00:00]} cxd3 {[%emt 0:00:11]} 15. Nf3 {[%emt 0:00:00]} Bb4+ {[%emt 0:00:18]} 16. Nd2 {[%emt 0:01:02]} Nd7 {[%emt 0:06:47]} 17. Rxc6 {[%emt 0:14:07]} Nxe5 {[%emt 0:01:04]} 18. dxe5 {[%emt 0:01:24]} O-O {[%emt 0:06:28]} 19. Rxa6 {[%emt 0:10:24]} Rfc8 {[%emt 0:00:18]} 20. O-O {[%emt 0:00:11]} Bxd2 {[%emt 0:00:06]} 21. Rd6 {[%emt 0:02:16]} Rd8 {[%emt 0:00:26]} 22. Rd1 {[%emt 0:00:18]} Bb4 {[%emt 0:00:45]} 23. R6xd3 {[%emt 0:00:30]} Rxd3 {[%emt 0:00:14]} 24. Rxd3 {[%emt 0:00:05]} Kf8 {[%emt 0:00:57]} 25. f4 {[%emt 0:02:05]} Ke7 {[%emt 0:00:34]} 26. Kf2 {[%emt 0:01:17]} Rc8 {[%emt 0:00:42]} 27. Kf3 {[%emt 0:00:34]} Rc2 {[%emt 0:00:56]} 28. b3 {[%emt 0:00:45]} Rd2 {[%emt 0:02:43]} 29. Rxd2 {[%emt 0:01:35]} Bxd2 {[%emt 0:00:07]} 30. Ke2 {[%emt 0:00:25]} Bc1 {[%emt 0:01:37]} 31. f5 {[%emt 0:00:52]} Bb2 {[%emt 0:00:27]} 32. g4 {[%emt 0:01:12]} Bxe5 {[%emt 0:00:14]} 33. h3 {[%emt 0:00:06]} g5 {[%emt 0:01:29]} 34. Kd3 {[%emt 0:01:26]} Kd6 {[%emt 0:00:28]} 35. Kc4 {[%emt 0:00:29]} a5 {[%emt 0:00:50]} 36. e4 {[%emt 0:00:48]} Bg3 {[%emt 0:01:08]} 37. Kd4 {[%emt 0:04:11]} Bf2+ {[%emt 0:01:13]} 38. Kc4 {[%emt 0:00:25]} Ke5 {[%emt 0:00:33]} 39. Kd3 {[%emt 0:01:01]} Bd4 {[%emt 0:03:06]} 40. Kc4 {[%emt 0:00:43]} Kxe4 {[%emt 0:00:20]} 41. b4 {[%emt 0:30:06]} axb4 {[%emt 0:30:06]} 42. Kxb4 {[%emt 0:00:02]} Kd5 {[%emt 0:02:59]} 43. Kb5 {[%emt 0:00:29]} Bc3 {[%emt 0:00:41]} 44. a5 {[%emt 0:00:08]} Bd4 {[%emt 0:03:50]} 45. a6 {[%emt 0:00:48]} f6 {[%emt 0:01:33]} 46. Ka4 {[%emt 0:00:20]} Kc6 {[%emt 0:01:03]} 47. Ka5 {[%emt 0:00:23]} h6 {[%emt 0:01:37]} 48. Kb4 {[%emt 0:00:19]} Kb6 {[%emt 0:00:37]} 49. Kc4 {[%emt 0:00:09]} Be5 {[%emt 0:01:08]} 50. Kd5 {[%emt 0:00:23]} Kxa6 {[%emt 0:00:45]} 51. Ke6 {[%emt 0:00:38]} Kb5 {[%emt 0:00:49]} 52. Kf7 {[%emt 0:00:08]} Kc5 {[%emt 0:00:49]} 53. Kg6 {[%emt 0:00:03]} Kd5 {[%emt 0:00:12]} 54. Kxh6 {[%emt 0:00:15]} Ke4 {[%emt 0:00:27]} 55. Kh5 {[%emt 0:00:22]} Kf4 {[%emt 0:00:21]} 56. h4 {[%emt 0:00:29]} gxh4 {[%emt 0:00:28]} 57. Kxh4 {[%emt 0:00:07]} Bc3 {[%emt 0:00:49]} 58. Kh5 {[%emt 0:00:29]} Be1 {[%emt 0:00:25]} 59. Kg6 {[%emt 0:00:15]} Bh4 {[%emt 0:00:10]} 60. g5 {[%emt 0:02:36]} Bxg5 {[%emt 0:00:34]} 61. Kh5 {[%emt 0:00:23]} Ke5 {[%emt 0:00:52]} 62. Kg6 {[%emt 0:00:57]} Bc1 {[%emt 0:00:21]} 63. Kh5 {[%emt 0:00:44]} Kxf5 {[%emt 0:00:09]} 64. Kh4 {[%emt 0:00:05]} Kf4 {[%emt 0:00:16]} 65. Kh3 {[%emt 0:00:11]} Kf3 {[%emt 0:00:11]} 66. Kh2 {[%emt 0:00:09]} Kf2 {[%emt 0:00:16]} 67. Kh1 {[%emt 0:00:09]} f5 {[%emt 0:00:07]} 68. Kh2 {[%emt 0:00:07]} f4 {[%emt 0:00:06]} 69. Kh1 {[%emt 0:00:15]} f3 {[%emt 0:00:09]} 70. Kh2 {[%emt 0:00:05]} Ke2 {[%emt 0:00:16]} 71. Kg3 {[%emt 0:00:16]} f2 {[%emt 0:00:08]} 72. Kg4 {[%emt 0:00:14]} f1=Q {[%emt 0:00:23]} 73. Kg3 {[%emt 0:00:08]} Qf4+ {[%emt 0:00:17]} 74. Kg2 {[%emt 0:00:19]} Qf3+ {[%emt 0:00:10]} 75. Kg1 {[%emt 0:00:15]} Be3+ {[%emt 0:00:22]} 76. Kh2 {[%emt 0:00:06]} Bf4+ {[%emt 0:00:08]} 77. Kg1 {[%emt 0:00:09]} Qg3+ {[%emt 0:00:07]} 78. Kh1 {[%emt 0:00:06]} Qh2# {[%emt 0:00:37]} 0-1

[Event "DVM U12 2024"]
[Site "Heidelberg"]
[Date "2024.12.28"]
[Round "4"]
[White "Tomovski, Leon"]
[Black "Hübler, Lennis"]
[Result "1-0"]
[ECO "C56"]
[WhiteElo "1569"]
[BlackElo "1261"]
[Annotator "NA"]
[PlyCount "79"]
[EventDate "2024.12.23"]
[EventType "team-tourn"]
[EventRounds "7"]
[EventCountry "GER"]
[SourceTitle "playchess.com"]
[Source "ChessBase"]
[SourceQuality "1"]
[TimeControl "40/5400+30:1800+30"]

1. e4 {[%emt 0:00:01]} e5 {[%emt 0:00:10]} 2. Nf3 {[%emt 0:00:04]} Nc6 {[%emt 0:00:06]} 3. Bc4 {[%emt 0:00:03]} Bc5 {[%emt 0:00:10]} 4. O-O {[%emt 0:00:04]} Nf6 {[%emt 0:00:11]} 5. c3 {[%emt 0:00:03]} Nxe4 {[%emt 0:00:43]} 6. d4 {[%emt 0:00:03]} exd4 {[%emt 0:00:40]} 7. cxd4 {[%emt 0:00:07]} d5 {[%emt 0:00:29]} 8. dxc5 {[%emt 0:00:19]} dxc4 {[%emt 0:00:21]} 9. Qxd8+ {[%emt 0:00:14]} Nxd8 {[%emt 0:00:37]} 10. Re1 {[%emt 0:00:06]} f5 {[%emt 0:00:52]} 11. Nc3 {[%emt 0:00:55]} O-O {[%emt 0:00:45]} 12. Nxe4 {[%emt 0:00:16]} fxe4 {[%emt 0:00:06]} 13. Rxe4 {[%emt 0:00:18]} Ne6 {[%emt 0:02:43]} 14. Rxc4 {[%emt 0:00:23]} Rd8 {[%emt 0:01:36]} 15. Be3 {[%emt 0:00:28]} Bd7 {[%emt 0:02:58]} 16. Ne5 {[%emt 0:00:50]} Bb5 {[%emt 0:01:17]} 17. Rb4 {[%emt 0:00:05]} a6 {[%emt 0:01:23]} 18. a4 {[%emt 0:00:06]} Bc6 {[%emt 0:05:33]} 19. Nxc6 {[%emt 0:00:29]} bxc6 {[%emt 0:00:24]} 20. Re4 {[%emt 0:00:23]} Nf8 {[%emt 0:01:46]} 21. Re7 {[%emt 0:00:29]} Rd7 {[%emt 0:03:26]} 22. Rxd7 {[%emt 0:00:10]} Nxd7 {[%emt 0:00:10]} 23. Rd1 {[%emt 0:00:19]} Nf6 {[%emt 0:01:53]} 24. Bg5 {[%emt 0:00:30]} Nd5 {[%emt 0:01:09]} 25. f4 {[%emt 0:00:36]} Rb8 {[%emt 0:00:35]} 26. Rb1 {[%emt 0:00:20]} Nc3 {[%emt 0:03:28]} 27. Re1 {[%emt 0:00:51]} Nxa4 {[%emt 0:01:50]} 28. Re7 {[%emt 0:00:35]} h6 {[%emt 0:01:26]} 29. Bh4 {[%emt 0:00:14]} Nxc5 {[%emt 0:01:16]} 30. Rxc7 {[%emt 0:00:09]} Rb6 {[%emt 0:01:57]} 31. Bf2 {[%emt 0:00:25]} Rb5 {[%emt 0:01:42]} 32. Rxc6 {[%emt 0:00:21]} Nd3 {[%emt 0:01:34]} 33. g3 {[%emt 0:03:08]} Rxb2 {[%emt 0:00:47]} 34. Bd4 {[%emt 0:00:47]} Ra2 {[%emt 0:02:48]} 35. Rc8+ {[%emt 0:00:21]} Kh7 {[%emt 0:02:18]} 36. Rc7 {[%emt 0:00:20]} h5 {[%emt 0:02:09]} 37. Rxg7+ {[%emt 0:00:26]} Kh6 {[%emt 0:00:13]} 38. f5 {[%emt 0:00:42]} Nc5 {[%emt 0:00:40]} 39. f6 {[%emt 0:00:51]} Ne6 {[%emt 0:01:22]} 40. Be3+ {[%emt 0:00:13]} 1-0

[Event "DVM U12 2024"]
[Site "Heidelberg"]
[Date "2024.12.28"]
[Round "4"]
[White "Ramayanam, Nithya"]
[Black "El Guettabi, Anas"]
[Result "1/2-1/2"]
[ECO "C00"]
[WhiteElo "1566"]
[BlackElo "1067"]
[Annotator "NA RC"]
[PlyCount "55"]
[EventDate "2024.12.23"]
[EventType "team-tourn"]
[EventRounds "7"]
[EventCountry "GER"]
[SourceTitle "playchess.com"]
[Source "ChessBase"]
[SourceQuality "1"]
[TimeControl "40/5400+30:1800+30"]

1. e4 {[%emt 0:00:02]} e6 {[%emt 0:00:05]} 2. Nf3 {[%emt 0:00:21]} d5 {[%emt 0:00:15]} 3. e5 {[%emt 0:00:35]} Bc5 {[%emt 0:00:29]} 4. d4 {[%emt 0:00:35]} Bb6 {[%emt 0:00:16]} 5. Be2 {[%emt 0:01:42]} Ne7 {[%emt 0:01:16]} 6. O-O {[%emt 0:01:46]} O-O {[%emt 0:01:20]} 7. b3 {[%emt 0:04:30]} c5 {[%emt 0:01:06]} 8. Bb2 {[%emt 0:02:29]} Nbc6 {[%emt 0:04:05]} 9. dxc5 {[%emt 0:06:07]} Bxc5 {[%emt 0:00:40]} 10. Nbd2 {[%emt 0:08:49]} Qc7 {[%emt 0:02:39]} 11. c4 {[%emt 0:03:41]} Ng6 {[%emt 0:03:07]} 12. cxd5 {[%emt 0:05:26]} exd5 {[%emt 0:02:26]} 13. Nb1 {[%emt 0:02:21]} Rd8 {[%emt 0:01:39]} 14. Qc2 {[%emt 0:04:16]} b6 {[%emt 0:03:39]} 15. Bb5 {[%emt 0:03:03]} Ncxe5 {[%emt 0:01:33]} 16. Nxe5 {[%emt 0:01:50]} Nxe5 {[%emt 0:00:55]} 17. b4 {[%emt 0:02:22]} Bd6 {[%emt 0:01:17]} 18. Qxc7 {[%emt 0:01:03]} Bxc7 {[%emt 0:00:15]} 19. Nc3 {[%emt 0:01:24]} Bb7 {[%emt 0:00:49]} 20. f4 {[%emt 0:00:42]} Nc6 {[%emt 0:00:58]} 21. Rad1 {[%emt 0:00:53]} Ne7 {[%emt 0:01:11]} 22. Rfe1 {[%emt 0:00:38]} Nf5 {[%emt 0:01:34]} 23. Ne2 {[%emt 0:01:35]} a6 {[%emt 0:02:50]} 24. Bd3 {[%emt 0:00:56]} Ne3 {[%emt 0:00:49]} 25. Rc1 {[%emt 0:01:27]} Rac8 {[%emt 0:00:50]} 26. h3 {[%emt 0:01:28]} Nc4 {[%emt 0:03:57]} 27. Bxc4 {[%emt 0:00:31]} dxc4 {[%emt 0:00:22]} 28. Rxc4 {[%emt 0:00:21]} 1/2-1/2

[Event "DVM U12 2024"]
[Site "Heidelberg"]
[Date "2024.12.28"]
[Round "4"]
[White "Libert, Nick"]
[Black "Hantke, Karl"]
[Result "0-1"]
[ECO "C54"]
[WhiteElo "1548"]
[BlackElo "1627"]
[Annotator "NA RC"]
[PlyCount "36"]
[EventDate "2024.12.23"]
[EventType "team-tourn"]
[EventRounds "7"]
[EventCountry "GER"]
[SourceTitle "playchess.com"]
[Source "ChessBase"]
[SourceQuality "1"]
[TimeControl "40/5400+30:1800+30"]

1. e4 {[%emt 0:00:00]} e5 {[%emt 0:00:08]} 2. Nf3 {[%emt 0:00:03]} Nc6 {[%emt 0:00:16]} 3. Bc4 {[%emt 0:00:03]} Bc5 {[%emt 0:00:52]} 4. c3 {[%emt 0:00:47]} Nf6 {[%emt 0:01:21]} 5. d4 {[%emt 0:01:45]} exd4 {[%emt 0:00:48]} 6. b4 {[%emt 0:00:11]} Bb6 {[%emt 0:04:19]} 7. e5 {[%emt 0:00:06]} d5 {[%emt 0:05:25]} 8. exf6 {[%emt 0:00:03]} dxc4 {[%emt 0:00:51]} 9. Qe2+ {[%emt 0:00:19]} Be6 {[%emt 0:01:00]} 10. b5 {[%emt 0:00:08]} d3 {[%emt 0:00:59]} 11. fxg7 {[%emt 0:00:52]} Rg8 {[%emt 0:00:19]} 12. Qe4 {[%emt 0:00:18]} Ne7 {[%emt 0:01:49]} 13. Qxh7 {[%emt 0:01:08]} Qd5 {[%emt 0:04:19]} 14. a4 {[%emt 0:06:54]} O-O-O {[%emt 0:10:34]} 15. Bg5 {[%emt 0:00:19]} Bf5 {[%emt 0:01:34]} 16. Qh4 {[%emt 0:00:06]} Ng6 {[%emt 0:00:30]} 17. Qg3 {[%emt 0:02:11]} Qe4+ {[%emt 0:01:51]} 18. Kf1 {[%emt 0:00:09]} Qe2+ {[%emt 0:00:14]} 0-1

[Event "DVM U12 2024"]
[Site "Heidelberg"]
[Date "2024.12.28"]
[Round "4"]
[White "Classen, Meara"]
[Black "Kesavan, Sarvesh"]
[Result "0-1"]
[ECO "E43"]
[WhiteElo "1456"]
[BlackElo "1721"]
[Annotator "NA RC"]
[PlyCount "66"]
[EventDate "2024.12.23"]
[EventType "team-tourn"]
[EventRounds "7"]
[EventCountry "GER"]
[SourceTitle "playchess.com"]
[Source "ChessBase"]
[SourceQuality "1"]
[TimeControl "40/5400+30:1800+30"]

1. d4 {[%emt 0:00:03]} Nf6 {[%emt 0:00:20]} 2. c4 {[%emt 0:00:06]} e6 {[%emt 0:00:06]} 3. Nc3 {[%emt 0:00:18]} Bb4 {[%emt 0:00:15]} 4. Bd2 {[%emt 0:00:31]} c5 {[%emt 0:00:50]} 5. e3 {[%emt 0:01:11]} O-O {[%emt 0:05:17]} 6. Nf3 {[%emt 0:01:31]} cxd4 {[%emt 0:02:11]} 7. exd4 {[%emt 0:01:53]} b6 {[%emt 0:05:14]} 8. a3 {[%emt 0:02:31]} Be7 {[%emt 0:01:30]} 9. Bd3 {[%emt 0:01:46]} Bb7 {[%emt 0:00:51]} 10. O-O {[%emt 0:02:37]} d5 {[%emt 0:01:09]} 11. cxd5 {[%emt 0:01:34]} Nxd5 {[%emt 0:02:24]} 12. Nxd5 {[%emt 0:01:12]} Bxd5 {[%emt 0:02:05]} 13. Bf4 {[%emt 0:04:43]} Nd7 {[%emt 0:02:36]} 14. Rc1 {[%emt 0:01:06]} Rc8 {[%emt 0:05:35]} 15. Qd2 {[%emt 0:01:30]} Nf6 {[%emt 0:07:02]} 16. Rxc8 {[%emt 0:00:42]} Qxc8 {[%emt 0:02:14]} 17. Rc1 {[%emt 0:00:20]} Qa8 {[%emt 0:05:57]} 18. Qc2 {[%emt 0:01:52]} Bxf3 {[%emt 0:04:27]} 19. gxf3 {[%emt 0:01:14]} Qxf3 {[%emt 0:03:19]} 20. Bg3 {[%emt 0:01:04]} Qa8 {[%emt 0:03:51]} 21. Bh4 {[%emt 0:04:08]} Nd5 {[%emt 0:01:30]} 22. Bxh7+ {[%emt 0:01:04]} Kh8 {[%emt 0:03:03]} 23. Bxe7 {[%emt 0:00:42]} Nxe7 {[%emt 0:01:01]} 24. Qd3 {[%emt 0:01:15]} g6 {[%emt 0:04:04]} 25. Qh3 {[%emt 0:03:52]} Kg7 {[%emt 0:01:37]} 26. Qg4 {[%emt 0:04:07]} Rc8 {[%emt 0:09:53]} 27. Re1 {[%emt 0:09:03]} Qb7 {[%emt 0:04:06]} 28. Qh4 {[%emt 0:02:34]} Rh8 {[%emt 0:03:18]} 29. Qg3 {[%emt 0:03:31]} Rxh7 {[%emt 0:01:07]} 30. Rc1 {[%emt 0:01:06]} Nd5 {[%emt 0:03:13]} 31. Qe5+ {[%emt 0:01:52]} f6 {[%emt 0:06:36]} 32. Qxe6 {[%emt 0:01:38]} Nf4 {[%emt 0:00:42]} 33. Qd6 Qg2# {[%emt 0:00:30]} 0-1

[Event "DVM U12 2024"]
[Site "Heidelberg"]
[Date "2024.12.28"]
[Round "4"]
[White "Rudnizki, Valentin"]
[Black "Cetinalp, Poyraz"]
[Result "0-1"]
[ECO "C54"]
[WhiteElo "1448"]
[BlackElo "1530"]
[Annotator "NA RC"]
[PlyCount "80"]
[EventDate "2024.12.23"]
[EventType "team-tourn"]
[EventRounds "7"]
[EventCountry "GER"]
[SourceTitle "playchess.com"]
[Source "ChessBase"]
[SourceQuality "1"]
[TimeControl "40/5400+30:1800+30"]

1. e4 {[%emt 0:00:04]} e5 {[%emt 0:00:02]} 2. Nf3 {[%emt 0:00:23]} Nc6 {[%emt 0:01:14]} 3. Bc4 {[%emt 0:00:14]} Bc5 {[%emt 0:00:55]} 4. c3 {[%emt 0:00:06]} Nf6 {[%emt 0:00:16]} 5. d4 {[%emt 0:00:15]} exd4 {[%emt 0:00:51]} 6. e5 {[%emt 0:00:38]} Ne4 {[%emt 0:04:54]} 7. cxd4 {[%emt 0:00:24]} Bb4+ {[%emt 0:01:29]} 8. Bd2 {[%emt 0:00:55]} d5 {[%emt 0:03:03]} 9. Bxb4 {[%emt 0:01:29]} Nxb4 {[%emt 0:00:26]} 10. Bb3 {[%emt 0:00:46]} Bg4 {[%emt 0:01:48]} 11. a3 {[%emt 0:01:00]} Nc6 {[%emt 0:00:54]} 12. Ba4 {[%emt 0:02:02]} Qd7 {[%emt 0:01:53]} 13. h3 {[%emt 0:01:18]} Bh5 {[%emt 0:01:07]} 14. g4 {[%emt 0:00:43]} Bg6 {[%emt 0:00:13]} 15. Nbd2 {[%emt 0:00:13]} O-O {[%emt 0:03:18]} 16. Rc1 {[%emt 0:10:42]} Rfe8 {[%emt 0:03:22]} 17. b4 {[%emt 0:01:25]} a6 {[%emt 0:00:49]} 18. Nb3 {[%emt 0:02:07]} b5 {[%emt 0:03:07]} 19. Nc5 {[%emt 0:01:31]} Nxc5 {[%emt 0:00:35]} 20. Rxc5 {[%emt 0:00:06]} bxa4 {[%emt 0:00:36]} 21. Qxa4 {[%emt 0:00:12]} Nxe5 {[%emt 0:01:39]} 22. Qb3 {[%emt 0:07:50]} Nxf3+ {[%emt 0:00:58]} 23. Kd1 {[%emt 0:00:15]} Nxd4 {[%emt 0:04:02]} 24. Qxd5 {[%emt 0:01:16]} Qxd5 {[%emt 0:00:22]} 25. Rxd5 {[%emt 0:00:11]} Rad8 {[%emt 0:00:41]} 26. Rxd8 {[%emt 0:00:25]} Rxd8 {[%emt 0:00:00]} 27. Kc1 {[%emt 0:00:14]} f6 {[%emt 0:00:00]} 28. Rd1 {[%emt 0:00:26]} Ne2+ {[%emt 0:00:06]} 29. Kb2 {[%emt 0:00:20]} Rxd1 {[%emt 0:00:07]} 30. b5 {[%emt 0:00:09]} axb5 {[%emt 0:00:04]} 31. a4 {[%emt 0:00:07]} bxa4 {[%emt 0:00:06]} 32. g5 {[%emt 0:01:09]} Rb1+ {[%emt 0:00:28]} 33. Ka3 {[%emt 0:00:12]} c5 {[%emt 0:00:08]} 34. gxf6 {[%emt 0:00:08]} c4 {[%emt 0:00:08]} 35. f7+ {[%emt 0:00:22]} Kxf7 {[%emt 0:00:05]} 36. f4 {[%emt 0:00:06]} Be4 {[%emt 0:00:14]} 37. f5 {[%emt 0:00:15]} c3 {[%emt 0:00:06]} 38. f6 {[%emt 0:00:35]} c2 {[%emt 0:00:15]} 39. Ka2 {[%emt 0:00:07]} c1=Q {[%emt 0:00:09]} 40. fxg7 {[%emt 0:00:36]} Bd5# {[%emt 0:00:36]} 0-1

[Event "DVM U12 2024"]
[Site "Heidelberg"]
[Date "2024.12.28"]
[Round "4"]
[White "Balthasar, Johann"]
[Black "Liu, Zichen"]
[Result "0-1"]
[ECO "C54"]
[WhiteElo "1317"]
[BlackElo "1563"]
[Annotator "NA RC"]
[PlyCount "70"]
[EventDate "2024.12.23"]
[EventType "team-tourn"]
[EventRounds "7"]
[EventCountry "GER"]
[SourceTitle "playchess.com"]
[Source "ChessBase"]
[SourceQuality "1"]
[TimeControl "40/5400+30:1800+30"]

1. e4 {[%emt 0:00:02]} e5 {[%emt 0:00:27]} 2. Nf3 {[%emt 0:00:07]} Nc6 {[%emt 0:00:33]} 3. Bc4 {[%emt 0:00:17]} Bc5 {[%emt 0:01:24]} 4. d3 {[%emt 0:00:11]} Nf6 {[%emt 0:02:04]} 5. c3 {[%emt 0:00:47]} O-O {[%emt 0:01:30]} 6. O-O {[%emt 0:00:15]} d6 {[%emt 0:01:02]} 7. a4 {[%emt 0:00:13]} a5 {[%emt 0:01:47]} 8. Re1 {[%emt 0:00:36]} Be6 {[%emt 0:01:38]} 9. Bxe6 {[%emt 0:00:32]} fxe6 {[%emt 0:01:45]} 10. Nbd2 {[%emt 0:00:18]} Ng4 {[%emt 0:07:21]} 11. Re2 {[%emt 0:00:21]} d5 {[%emt 0:05:43]} 12. Nf1 {[%emt 0:02:25]} dxe4 {[%emt 0:01:13]} 13. Bg5 {[%emt 0:00:10]} Qxd3 {[%emt 0:14:11]} 14. Qxd3 {[%emt 0:01:05]} exd3 {[%emt 0:00:12]} 15. Rd2 {[%emt 0:00:58]} e4 {[%emt 0:03:14]} 16. Re1 {[%emt 0:00:49]} exf3 {[%emt 0:05:42]} 17. Rxd3 {[%emt 0:00:46]} Bxf2+ {[%emt 0:00:53]} 18. Kh1 {[%emt 0:00:19]} fxg2+ {[%emt 0:01:16]} 19. Kxg2 {[%emt 0:00:10]} Bxe1 {[%emt 0:00:10]} 20. Rd7 {[%emt 0:03:17]} Rf2+ {[%emt 0:03:28]} 21. Kg1 {[%emt 0:00:31]} Raf8 {[%emt 0:01:05]} 22. Ne3 {[%emt 0:05:24]} h6 {[%emt 0:00:37]} 23. Nxg4 {[%emt 0:00:21]} Rf1+ {[%emt 0:00:15]} 24. Kg2 {[%emt 0:01:43]} hxg5 {[%emt 0:00:26]} 25. Rxc7 {[%emt 0:00:37]} R8f4 {[%emt 0:04:23]} 26. h3 {[%emt 0:00:11]} R1f3 {[%emt 0:04:13]} 27. Rxb7 {[%emt 0:00:41]} Rg3+ {[%emt 0:02:04]} 28. Kh2 {[%emt 0:00:23]} Rff3 {[%emt 0:00:57]} 29. Kh1 {[%emt 0:00:56]} Rxh3+ {[%emt 0:01:03]} 30. Nh2 {[%emt 0:00:25]} Rf2 {[%emt 0:00:25]} 31. b4 {[%emt 0:02:57]} Rfxh2+ {[%emt 0:00:00]} 32. Kg1 {[%emt 0:00:25]} axb4 {[%emt 0:00:29]} 33. cxb4 {[%emt 0:00:29]} Bxb4 {[%emt 0:00:09]} 34. Rb6 {[%emt 0:00:23]} Rc2 {[%emt 0:00:13]} 35. Rb5 {[%emt 0:01:31]} Rb3 {[%emt 0:00:16]} 0-1

[Event "DVM U12 2024"]
[Site "Heidelberg"]
[Date "2024.12.28"]
[Round "4"]
[White "Xu, Yan"]
[Black "Riebienkov, Mark"]
[Result "1/2-1/2"]
[ECO "C77"]
[WhiteElo "1268"]
[BlackElo "1269"]
[Annotator "NA RC"]
[PlyCount "53"]
[EventDate "2024.12.23"]
[EventType "team-tourn"]
[EventRounds "7"]
[EventCountry "GER"]
[SourceTitle "playchess.com"]
[Source "ChessBase"]
[SourceQuality "1"]
[TimeControl "40/5400+30:1800+30"]

1. e4 {[%emt 0:00:09]} e5 {[%emt 0:00:14]} 2. Nf3 {[%emt 0:00:15]} Nc6 {[%emt 0:01:57]} 3. Nc3 {[%emt 0:00:18]} Nf6 {[%emt 0:00:59]} 4. Bb5 {[%emt 0:00:34]} d6 {[%emt 0:01:25]} 5. d3 {[%emt 0:00:41]} Be7 {[%emt 0:00:27]} 6. h3 {[%emt 0:00:35]} a6 {[%emt 0:01:27]} 7. Ba4 {[%emt 0:00:12]} Bd7 {[%emt 0:00:56]} 8. a3 {[%emt 0:00:27]} Nd4 {[%emt 0:02:12]} 9. Bxd7+ {[%emt 0:01:27]} Qxd7 {[%emt 0:00:32]} 10. Be3 {[%emt 0:00:39]} c5 {[%emt 0:03:00]} 11. Nd5 {[%emt 0:01:24]} Nxd5 {[%emt 0:01:40]} 12. exd5 {[%emt 0:04:38]} f5 {[%emt 0:02:22]} 13. c4 {[%emt 0:00:00]} Nxf3+ {[%emt 0:09:47]} 14. Qxf3 {[%emt 0:00:00]} b5 {[%emt 0:02:35]} 15. Qe2 {[%emt 0:01:45]} O-O {[%emt 0:08:09]} 16. O-O {[%emt 0:02:08]} Bf6 {[%emt 0:01:57]} 17. Qd2 {[%emt 0:05:02]} f4 {[%emt 0:03:01]} 18. Bxc5 {[%emt 0:01:41]} dxc5 {[%emt 0:00:30]} 19. b4 {[%emt 0:00:41]} cxb4 {[%emt 0:02:48]} 20. axb4 {[%emt 0:00:36]} e4 {[%emt 0:01:28]} 21. Rac1 {[%emt 0:00:30]} bxc4 {[%emt 0:02:22]} 22. dxc4 {[%emt 0:01:08]} Rad8 {[%emt 0:02:44]} 23. Rfd1 {[%emt 0:01:06]} f3 {[%emt 0:01:54]} 24. g4 {[%emt 0:00:47]} Be5 {[%emt 0:04:05]} 25. Rc2 {[%emt 0:02:39]} Rf4 {[%emt 0:05:08]} 26. Qe3 {[%emt 0:03:48]} Qa4 {[%emt 0:07:26]} 27. Qd2 {[%emt 0:01:11]} 1/2-1/2

[Event "DVM U12 2024"]
[Site "Heidelberg"]
[Date "2024.12.28"]
[Round "4"]
[White "Haug, Niklas Alexander"]
[Black "Liu, Miran"]
[Result "1/2-1/2"]
[ECO "C50"]
[WhiteElo "1115"]
[BlackElo "962"]
[Annotator "NA RC"]
[PlyCount "69"]
[EventDate "2024.12.23"]
[EventType "team-tourn"]
[EventRounds "7"]
[EventCountry "GER"]
[SourceTitle "playchess.com"]
[Source "ChessBase"]
[SourceQuality "1"]
[TimeControl "40/5400+30:1800+30"]

1. e4 {[%emt 0:00:06]} e5 {[%emt 0:00:09]} 2. Nf3 {[%emt 0:00:14]} Nc6 {[%emt 0:00:05]} 3. Bc4 {[%emt 0:00:23]} Bc5 {[%emt 0:00:12]} 4. Nc3 {[%emt 0:01:50]} Nf6 {[%emt 0:00:22]} 5. d3 {[%emt 0:00:57]} h6 {[%emt 0:01:05]} 6. Be3 {[%emt 0:03:20]} Bxe3 {[%emt 0:00:47]} 7. fxe3 {[%emt 0:00:13]} d6 {[%emt 0:00:32]} 8. h3 {[%emt 0:01:04]} O-O {[%emt 0:01:04]} 9. O-O {[%emt 0:02:59]} Bd7 {[%emt 0:02:50]} 10. d4 {[%emt 0:06:34]} Re8 {[%emt 0:02:41]} 11. Re1 {[%emt 0:02:26]} a6 {[%emt 0:05:07]} 12. a3 {[%emt 0:06:52]} b5 {[%emt 0:04:00]} 13. Ba2 {[%emt 0:05:50]} Na7 {[%emt 0:05:46]} 14. Qd3 {[%emt 0:05:29]} Bc6 {[%emt 0:02:32]} 15. Bd5 {[%emt 0:05:04]} Nxd5 {[%emt 0:01:45]} 16. Nxd5 {[%emt 0:00:36]} Bxd5 {[%emt 0:00:50]} 17. exd5 {[%emt 0:00:26]} e4 {[%emt 0:01:03]} 18. Qe2 {[%emt 0:01:00]} exf3 {[%emt 0:01:14]} 19. Qxf3 {[%emt 0:00:09]} Nc8 {[%emt 0:02:22]} 20. Rf1 {[%emt 0:01:14]} Rf8 {[%emt 0:00:48]} 21. e4 {[%emt 0:00:38]} Ne7 {[%emt 0:01:03]} 22. c3 {[%emt 0:00:42]} Ng6 {[%emt 0:01:11]} 23. Rac1 {[%emt 0:02:34]} Qe7 {[%emt 0:02:29]} 24. c4 {[%emt 0:01:20]} bxc4 {[%emt 0:02:39]} 25. Rxc4 {[%emt 0:00:19]} Rab8 {[%emt 0:00:50]} 26. Rc2 {[%emt 0:00:44]} Nh8 {[%emt 0:02:38]} 27. Qf4 {[%emt 0:04:37]} Rfe8 {[%emt 0:03:04]} 28. Re2 {[%emt 0:01:23]} f6 {[%emt 0:02:24]} 29. Rf3 {[%emt 0:02:52]} Ng6 {[%emt 0:01:12]} 30. Qg4 {[%emt 0:03:39]} Qf7 {[%emt 0:04:59]} 31. Rg3 {[%emt 0:01:02]} Nf8 {[%emt 0:01:37]} 32. Rf2 {[%emt 0:02:10]} Qe7 {[%emt 0:02:41]} 33. b4 {[%emt 0:04:06]} Nd7 {[%emt 0:01:21]} 34. Rf5 {[%emt 0:01:52]} Rf8 {[%emt 0:03:20]} 35. Rh5 {[%emt 0:00:58]} 1/2-1/2